bitfinex/quotes_BTCUSD_20260126
["timestamp","ask_amount","ask_price","bid_price","bid_amount"]
[1769451563439,0.03,88069.0,88058.0,0.18587615]
[1769451563805,0.03,88069.0,88058.0,0.17452]
[1769451564012,0.17452,88081.0,88058.0,0.18587615]
[1769451564269,0.6967496,88080.0,88059.0,0.03446994]
[1769451564441,0.05353979,88079.0,88059.0,0.02311392]
[1769451564631,0.70900269,88075.0,88059.0,0.02311392]
[1769451564928,0.70900269,88075.0,88059.0,0.03446994]
[1769451565767,0.70900269,88075.0,88059.0,0.02311392]
[1769451566969,0.70900269,88075.0,88059.0,0.18206994]
[1769451567151,0.70900269,88075.0,88064.0,0.01135537]
[1769451567705,0.03,88076.0,88069.0,0.05677347]
[1769451567879,0.03,88076.0,88066.0,0.01222609]
[1769451568079,0.03,88076.0,88065.0,0.01222621]
[1769451568283,0.03,88076.0,88066.0,0.01135512]
[1769451568496,0.70900269,88076.0,88067.0,0.06812963]
[1769451568782,0.70900269,88076.0,88067.0,0.01135499]
[1769451569709,0.70900269,88076.0,88068.0,0.01222579]
[1769451569910,0.70900269,88076.0,88068.0,0.01809059]
[1769451570264,0.70900269,88076.0,88068.0,0.02944545]
[1769451570465,0.70900269,88076.0,88068.0,0.08621972]
[1769451570669,0.70900269,88076.0,88069.0,0.01135473]
[1769451571093,0.70900269,88076.0,88068.0,0.01721966]
[1769451571310,0.70900269,88076.0,88061.0,0.06813436]
[1769451571542,0.70900269,88076.0,88049.0,0.01135731]
[1769451571698,0.18587292,88083.0,88049.0,0.01135731]
[1769451571699,0.03,88070.0,88050.0,0.07079161]
[1769451571893,0.03,88068.0,88050.0,0.12757743]
[1769451572135,0.03,88068.0,88051.0,0.02311392]
[1769451572389,0.70900269,88068.0,88051.0,0.02311392]
[1769451572537,0.70900269,88068.0,88046.0,0.23130834]
[1769451572701,0.03,88062.0,88047.0,0.10446566]
[1769451572907,0.03,88060.0,88048.0,0.15895744]
[1769451573114,0.70900269,88060.0,88048.0,0.15895744]
[1769451573317,0.70900269,88060.0,88049.0,0.01135731]
[1769451573548,0.70900269,88060.0,88049.0,0.06814383]
[1769451573744,0.70900269,88060.0,88050.0,0.01135718]
[1769451574178,0.01786078,88066.0,88049.0,0.02311392]
[1769451574487,0.85352269,88084.0,88070.0,0.0113546]
[1769451574733,0.67900269,88082.0,88066.0,0.01135512]
[1769451574937,0.02353979,88079.0,88063.0,0.02311392]
[1769451575085,0.67900269,88076.0,88053.0,0.01135679]
[1769451575295,0.03,88068.0,88053.0,0.01135679]
[1769451575527,0.03,88064.0,88049.0,0.01135731]
[1769451575694,0.03,88062.0,88049.0,0.01135731]
[1769451575894,0.03,88060.0,88049.0,0.01135731]
[1769451576113,0.03,88060.0,88050.0,0.01135718]
[1769451576493,0.03,88060.0,88049.0,0.06814342]
[1769451576691,0.03,88060.0,88050.0,0.01135718]
[1769451576954,0.70900269,88067.0,88054.0,0.01135666]
[1769451577239,0.70900269,88067.0,88055.0,0.03638284]
[1769451577442,0.70900269,88067.0,88052.0,0.02311392]
[1769451577806,0.03,88065.0,88049.0,0.01135731]
[1769451578012,0.17452,88074.0,88049.0,0.01135731]
[1769451578013,0.03,88063.0,88050.0,0.02311392]
[1769451578406,0.03,88063.0,88050.0,0.0344711]
[1769451579331,0.03,88062.0,88056.0,0.0113564]
[1769451579529,0.03,88062.0,88055.0,0.01135653]
[1769451579712,0.03,88062.0,88056.0,0.0113564]
[1769451580317,0.03,88061.0,88055.0,0.01135653]
[1769451580521,0.03,88061.0,88056.0,0.0113564]
[1769451580740,0.03,88061.0,88055.0,0.01135653]
[1769451581111,0.03,88061.0,88056.0,0.0113564]
[1769451581561,0.03,88068.0,88055.0,0.06813898]
[1769451581713,0.03,88068.0,88056.0,0.0113564]
[1769451581910,0.03,88068.0,88056.0,0.06813799]
[1769451582176,0.03,88068.0,88057.0,0.01135628]
[1769451582310,0.03,88068.0,88063.0,0.0113555]
[1769451582513,0.03,88078.0,88064.0,0.01135537]
[1769451582724,0.03,88074.0,88064.0,0.01135537]
[1769451582939,0.03,88074.0,88064.0,0.06813203]
[1769451583138,0.03,88074.0,88064.0,0.01135537]
[1769451583444,0.03,88074.0,88063.0,0.02311392]
[1769451584820,0.03,88074.0,88057.0,0.1476]
[1769451585077,0.03,88074.0,88036.0,0.34076614]
[1769451585078,0.67900269,88064.0,88045.0,0.05678906]
[1769451585264,0.03,88063.0,88047.0,0.05678755]
[1769451585514,0.03,88059.0,88048.0,0.02954505]
[1769451585730,0.03,88055.0,88044.0,0.0001386]
[1769451587215,0.03,88051.0,88044.0,0.0001386]
[1769451587376,0.03,88047.0,88044.0,0.0001386]
[1769451587576,0.70900269,88047.0,88044.0,0.0001386]
[1769451588203,0.70900269,88047.0,88026.0,0.64250631]
[1769451588408,0.03,88039.0,88009.0,0.02311392]
[1769451588575,0.03,88031.0,88003.0,0.17452]
[1769451588803,0.02321915,88024.0,88003.0,0.17452]
[1769451589034,0.03,88017.0,88003.0,0.17452]
[1769451589235,0.03,88015.0,88003.0,0.17452]
[1769451589391,0.03,88015.0,88004.0,0.01136311]
[1769451589593,0.03,88015.0,88005.0,0.02395094]
[1769451590210,0.03,88024.0,88005.0,0.02395094]
[1769451590410,0.03,88018.0,88003.0,0.17452]
[1769451590631,0.64660025,88009.0,88003.0,0.17452]
[1769451590850,0.02321915,88014.0,88003.0,0.17452]
[1769451590851,0.67660025,88008.0,88003.0,0.17452]
[1769451591315,0.67660025,88008.0,87995.0,0.05682093]
[1769451591316,0.67660025,88008.0,87993.0,0.01136454]
[1769451591583,0.67660025,88008.0,87994.0,0.03632051]
[1769451591792,0.67660025,88008.0,87992.0,0.01136466]
[1769451591974,0.67660025,88008.0,87993.0,0.01136454]
[1769451592315,0.67660025,88008.0,87994.0,0.01136441]
[1769451592474,0.03,88014.0,87996.0,0.68485144]
[1769451592673,0.03,88014.0,87995.0,0.03531522]
[1769451592674,0.6698194,88013.0,87995.0,0.01136428]
[1769451592879,0.03,88010.0,87998.0,0.01136389]
[1769451593477,0.67660025,88010.0,87999.0,0.01136376]
[1769451593840,0.67660025,88010.0,88000.0,0.04216999]
[1769451594599,0.03,88006.0,87992.0,0.01136466]
[1769451594797,0.17456,88017.0,87981.0,0.19851094]
[1769451594798,0.03,88002.0,87981.0,0.19851094]
[1769451594995,0.64660025,87999.0,87983.0,0.02395094]
[1769451595196,0.23140144,88017.0,87983.0,0.02102294]
[1769451595197,0.02321915,87995.0,87983.0,0.02102294]
[1769451595528,0.03,87992.0,87983.0,0.02102294]
[1769451595727,0.67660025,87992.0,87981.0,0.18592609]
[1769451596028,0.67660025,87992.0,87981.0,0.17456]
[1769451596843,0.17456,88004.0,87974.0,0.01136699]
[1769451596844,0.05321915,87988.0,87974.0,0.01136699]
[1769451596996,0.03,87984.0,87972.0,0.04768776]
[1769451597198,0.03,87984.0,87973.0,0.01136712]
[1769451597403,0.03,87984.0,87972.0,0.04768776]
[1769451597592,0.03,87984.0,87973.0,0.01136712]
[1769451597794,0.03,87984.0,87974.0,0.01136699]
[1769451598002,0.03,87983.0,87974.0,0.01136699]
[1769451598254,0.03,87983.0,87973.0,0.01136712]
[1769451598456,0.03,87983.0,87973.0,0.06820262]
[1769451598759,0.03,87983.0,87972.0,0.04768776]
[1769451598964,0.03,87983.0,87973.0,0.01136712]
[1769451599198,0.03,87982.0,87975.0,0.01136686]
[1769451599957,0.03,87982.0,87973.0,0.01136712]
[1769451600158,0.03,87981.0,87969.0,0.0004]
[1769451600364,0.03,87981.0,87966.0,0.03571896]
[1769451600365,0.03,87977.0,87966.0,0.0004]
[1769451601332,0.23142224,87994.0,87966.0,0.0004]
[1769451601333,0.03,87975.0,87969.0,0.001]
[1769451601555,0.64660025,87993.0,87967.0,0.0004]
[1769451601801,0.64660025,87989.0,87967.0,0.0004]
[1769451602097,0.1746,87994.0,87967.0,0.0004]
[1769451602098,0.02321915,87984.0,87967.0,0.0004]
[1769451602300,0.64660025,87981.0,87967.0,0.0004]
[1769451602442,0.64660025,87979.0,87967.0,0.0004]
[1769451602649,0.03,87978.0,87969.0,0.01136764]
[1769451602854,0.02321915,87986.0,87978.0,0.01]
[1769451603284,0.6698194,87986.0,87978.0,0.01]
[1769451603485,0.02321915,87993.0,87978.0,0.02136647]
[1769451603766,0.03,87992.0,87978.0,0.01794176]
[1769451603912,0.67660025,87992.0,87978.0,0.01794176]
[1769451604286,0.6998194,87992.0,87978.0,0.02136647]
[1769451604491,0.6998194,87992.0,87978.0,0.0781987]
[1769451604698,0.6998194,87992.0,87978.0,0.01]
[1769451605389,0.03,87988.0,87971.0,0.01136738]
[1769451605595,0.67660025,87982.0,87958.0,0.01136906]
[1769451605713,0.06818816,87992.0,87960.0,0.0113688]
[1769451605714,0.05321915,87974.0,87960.0,0.0113688]
[1769451605914,0.67660025,87972.0,87960.0,0.0113688]
[1769451606116,0.67660025,87972.0,87944.0,0.01137087]
[1769451606315,0.01136609,87981.0,87944.0,0.01137087]
[1769451606316,0.05321915,87964.0,87953.0,0.19707674]
[1769451606561,0.67660025,87962.0,87953.0,0.19707674]
[1769451606739,0.67660025,87962.0,87946.0,0.04548]
[1769451607101,0.64660025,87953.0,87946.0,0.04548]
[1769451607238,0.67660025,87952.0,87946.0,0.04548]
[1769451607434,0.67660025,87952.0,87938.0,0.05685767]
[1769451607435,0.03,87948.0,87938.0,0.01137164]
[1769451607754,0.03,87948.0,87932.0,0.70880238]
[1769451607755,0.17468,87955.0,87933.0,0.03632051]
[1769451607959,0.02321915,87958.0,87949.0,0.01137022]
[1769451608124,0.17468,87970.0,87950.0,0.01137009]
[1769451608324,0.02321915,87968.0,87950.0,0.01137009]
[1769451608564,0.17468,87970.0,87950.0,0.01137009]
[1769451608565,0.03,87964.0,87951.0,0.01136996]
[1769451608773,0.67660025,87964.0,87950.0,0.01137009]
[1769451609124,0.67660025,87964.0,87949.0,0.01137022]
[1769451609328,0.67660025,87964.0,87950.0,0.01137009]
[1769451609546,0.67660025,87964.0,87948.0,0.01137035]
[1769451609749,0.67660025,87964.0,87946.0,0.02395094]
[1769451609984,0.05321915,87956.0,87939.0,0.01137151]
[1769451610189,0.03,87950.0,87937.0,0.01137177]
[1769451610391,0.67660025,87950.0,87937.0,0.01137177]
[1769451610597,0.03,87950.0,87937.0,0.01137177]
[1769451610873,0.67660025,87950.0,87936.0,0.03532284]
[1769451611049,0.67660025,87950.0,87935.0,0.01137203]
[1769451611255,0.67660025,87950.0,87942.0,0.01137113]
[1769451611492,0.03,87952.0,87941.0,0.01137126]
[1769451611701,0.03,87952.0,87943.0,0.011371]
[1769451612060,0.03,87952.0,87942.0,0.01137113]
[1769451612496,0.03,87952.0,87943.0,0.011371]
[1769451612711,0.03,87952.0,87942.0,0.01137113]
[1769451612712,0.03,87952.0,87937.0,0.68485144]
[1769451612861,0.67660025,87950.0,87936.0,0.06823109]
[1769451613063,0.02321915,87949.0,87936.0,0.0113719]
[1769451613392,0.02321915,87949.0,87933.0,0.0476928]
[1769451613393,0.03,87946.0,87933.0,0.01137229]
[1769451613563,0.03,87946.0,87937.0,0.05685827]
[1769451613764,0.03,87946.0,87936.0,0.0113719]
[1769451613765,0.03,87946.0,87940.0,0.01137138]
[1769451614113,0.64660025,87953.0,87940.0,0.01137138]
[1769451614317,0.03,87952.0,87948.0,0.01137035]
[1769451614469,0.19224615,87969.0,87950.0,0.05684989]
[1769451614665,0.64660025,87966.0,87949.0,0.01137022]
[1769451614922,0.64660025,87964.0,87951.0,0.01136996]
[1769451615215,0.64660025,87964.0,87952.0,0.01136983]
[1769451615421,0.03,87963.0,87948.0,0.00795929]
[1769451615624,0.64660025,87970.0,87956.0,0.01136932]
[1769451615829,0.64660025,87970.0,87953.0,0.0113697]
[1769451616028,0.6698194,87970.0,87955.0,0.01136945]
[1769451616260,0.6698194,87970.0,87950.0,0.48676004]
[1769451616261,0.64660025,87970.0,87954.0,0.02395094]
[1769451616389,0.03,87967.0,87956.0,0.01136932]
[1769451616594,0.67660025,87967.0,87957.0,0.01136919]
[1769451617106,0.67660025,87967.0,87958.0,0.01136906]
[1769451617304,0.67660025,87967.0,87959.0,0.06821356]
[1769451617512,0.67660025,87967.0,87959.0,0.01136893]
[1769451618106,0.67660025,87967.0,87958.0,0.01136906]
[1769451618326,0.67660025,87967.0,87959.0,0.01477986]
[1769451618735,0.03,87969.0,87959.0,0.01477986]
[1769451618941,0.03,87969.0,87959.0,0.02614879]
[1769451619105,0.03,87969.0,87958.0,0.06821399]
[1769451619305,0.03,87969.0,87955.0,0.01136945]
[1769451619558,0.03,87967.0,87951.0,0.01136996]
[1769451619761,0.03,87965.0,87956.0,0.01136932]
[1769451619989,0.03,87965.0,87957.0,0.01136919]
[1769451620376,0.03,87965.0,87956.0,0.01136932]
[1769451620583,0.03,87965.0,87955.0,0.0682156]
[1769451620584,0.03,87965.0,87955.0,0.00087558]
[1769451620786,0.03,87964.0,87955.0,0.00087558]
[1769451621692,0.03,87963.0,87955.0,0.00087558]
[1769451621855,0.69503588,87961.0,87949.0,0.01137022]
[1769451622053,0.69503588,87948.0,87938.0,0.01137164]
[1769451622289,0.60810239,87948.0,87939.0,0.01137151]
[1769451622451,0.60810239,87948.0,87940.0,0.01137138]
[1769451622655,0.02271775,87952.0,87942.0,0.01137113]
[1769451622956,0.02271775,87965.0,87952.0,0.01136983]
[1769451623156,0.03,87964.0,87952.0,0.06821867]
[1769451623491,0.03,87962.0,87953.0,0.0113697]
[1769451623712,0.03,87962.0,87953.0,0.06821818]
[1769451623840,0.03,87962.0,87954.0,0.01136957]
[1769451624041,0.03,87962.0,87955.0,0.03865782]
[1769451624811,0.04552,87984.0,87955.0,0.03865782]
[1769451624812,0.66503588,87973.0,87956.0,0.67041758]
[1769451624958,0.68775363,87972.0,87956.0,0.01136932]
[1769451625160,0.68775363,87972.0,87959.0,0.01136893]
[1769451625361,0.02271775,87971.0,87958.0,0.01136906]
[1769451625559,0.66503588,87970.0,87955.0,0.03979463]
[1769451625770,0.66503588,87968.0,87955.0,0.03979463]
[1769451625985,0.03,87967.0,87958.0,0.01136906]
[1769451626981,0.03,87967.0,87956.0,0.03378368]
[1769451627199,0.03,87967.0,87956.0,0.09063007]
[1769451627400,0.03,87967.0,87959.0,0.01136893]
[1769451627622,0.03,87967.0,87956.0,0.09062996]
[1769451627802,0.03,87967.0,87958.0,0.01136906]
[1769451628031,0.03,87967.0,87959.0,0.01136893]
[1769451628233,0.66503588,87977.0,87962.0,0.01136854]
[1769451628419,0.68775363,87977.0,87962.0,0.06821091]
[1769451628619,0.66503588,87975.0,87963.0,0.01136841]
[1769451628837,0.66503588,87975.0,87961.0,0.06821173]
[1769451629066,0.66503588,87975.0,87958.0,0.05684524]
[1769451629239,0.69503588,87973.0,87960.0,0.0113688]
[1769451629400,0.69503588,87973.0,87959.0,0.02241436]
[1769451630044,0.69503588,87973.0,87960.0,0.0113688]
[1769451630244,0.69503588,87973.0,87961.0,0.05684289]
[1769451630410,0.03,87996.0,87965.0,0.01136815]
[1769451630610,0.10205936,88002.0,87966.0,0.10686597]
[1769451630611,0.03,87988.0,87966.0,0.10686597]
[1769451630810,0.29023195,87995.0,87966.0,0.10686597]
[1769451630811,0.03,87984.0,87967.0,0.01136789]
[1769451631043,0.03,87982.0,87967.0,0.06820724]
[1769451631359,0.71775363,87982.0,87966.0,0.10686597]
[1769451631562,0.71775363,87982.0,87967.0,0.09062148]
[1769451631727,0.71775363,87982.0,87969.0,0.01136764]
[1769451632148,0.71775363,87982.0,87968.0,0.06820614]
[1769451632391,0.71775363,87982.0,87967.0,0.09062166]
[1769451632542,0.17472,87993.0,87965.0,0.18608815]
[1769451632543,0.03,87978.0,87965.0,0.17472]
[1769451632740,0.17472,87993.0,87956.0,0.17472]
[1769451632741,0.02271775,87969.0,87956.0,0.17472]
[1769451632968,0.06819292,87986.0,87956.0,0.17472]
[1769451632969,0.03,87964.0,87956.0,0.17472]
[1769451633165,0.69503588,87964.0,87956.0,0.17472]
[1769451633341,0.69503588,87964.0,87957.0,0.02543085]
[1769451636103,0.02271775,87980.0,87963.0,0.03]
[1769451636287,0.01,87963.0,87952.0,0.05684868]
[1769451636632,0.66503588,87966.0,87953.0,0.068218]
[1769451636848,0.17472,87982.0,87961.0,0.65904826]
[1769451636998,0.02271775,87978.0,87961.0,0.01136867]
[1769451637196,0.69503588,87975.0,87961.0,0.01136867]
[1769451637618,0.03,87973.0,87959.0,0.06821332]
[1769451637844,0.03,87971.0,87967.0,0.01136789]
[1769451638204,0.03,87971.0,87965.0,0.06820873]
[1769451638452,0.03,87971.0,87967.0,0.01136789]
[1769451638843,0.03,87970.0,87966.0,0.01136802]
[1769451639040,0.03,87970.0,87965.0,0.03544392]
[1769451639241,0.03,87970.0,87966.0,0.01136802]
[1769451639559,0.03,87970.0,87967.0,0.01136789]
[1769451639760,0.03,87981.0,87968.0,0.68312403]
[1769451639960,0.03,87981.0,87968.0,0.02407577]
[1769451641642,0.03,87980.0,87965.0,0.06820888]
[1769451641842,0.03,87980.0,87964.0,0.0682094]
[1769451642038,0.03,87980.0,87967.0,0.01136789]
[1769451642357,0.03,87980.0,87968.0,0.01136777]
[1769451642558,0.17472,87992.0,87972.0,0.01136725]
[1769451642559,0.03,87979.0,87972.0,0.01136725]
[1769451642957,0.03,87979.0,87971.0,0.01136738]
[1769451643522,0.17472,87992.0,87971.0,0.01136738]
[1769451643725,0.02271775,87989.0,87972.0,0.01136725]
[1769451643928,0.66503588,87986.0,87972.0,0.06820342]
[1769451644169,0.66503588,87986.0,87972.0,0.01136725]
[1769451644567,0.66503588,87986.0,87970.0,0.01136751]
[1769451644751,0.69503588,87985.0,87970.0,0.01136751]
[1769451645582,0.69503588,87985.0,87968.0,0.02407577]
[1769451645776,0.03,87979.0,87961.0,0.02407577]
[1769451646038,0.03,87973.0,87964.0,0.01136828]
[1769451646847,0.03,87973.0,87963.0,0.17472]
[1769451647129,0.03,87975.0,87963.0,0.17472]
[1769451647331,0.03,87975.0,87963.0,0.18608841]
[1769451648037,0.03,87975.0,87963.0,0.17472]
[1769451649045,0.03,87975.0,87963.0,0.18608841]
[1769451649261,0.03,87974.0,87966.0,0.01136802]
[1769451649458,0.03,87974.0,87969.0,0.06820579]
[1769451649788,0.01811973,87982.0,87969.0,0.01136764]
[1769451649951,0.67485549,87982.0,87969.0,0.01136764]
[1769451650164,0.45930438,87982.0,87969.0,0.01136764]
[1769451650339,0.45930438,87982.0,87970.0,0.01136751]
[1769451650340,0.03,87981.0,87970.0,0.01136751]
[1769451650546,0.03,87981.0,87971.0,0.068204]
[1769451650823,0.03,87981.0,87973.0,0.01136712]
[1769451650959,0.03,87981.0,87972.0,0.01136725]
[1769451651358,0.03,87980.0,87972.0,0.01136725]
[1769451651767,0.03,87980.0,87971.0,0.01136738]
[1769451652550,0.65673576,87988.0,87971.0,0.01136738]
[1769451652551,0.65673576,87988.0,87971.0,0.02432832]
[1769451652773,0.65673576,87997.0,87975.0,0.01136686]
[1769451652880,0.02381274,87996.0,87976.0,0.02432832]
[1769451653089,0.6805485,87995.0,87976.0,0.09252851]
[1769451653399,0.6805485,87995.0,87979.0,0.01136634]
[1769451653654,0.03,87992.0,87979.0,0.01136634]
[1769451653896,0.68673576,87992.0,87980.0,0.01136621]
[1769451654064,0.68673576,87992.0,87979.0,0.01136634]
[1769451654216,0.68673576,87992.0,87980.0,0.01136621]
[1769451654522,0.68673576,87992.0,87976.0,0.02432832]
[1769451654724,0.68673576,87975.0,87964.0,0.04552]
[1769451654927,0.05691539,87974.0,87966.0,0.01136802]
[1769451655163,0.65673576,87981.0,87976.0,0.03]
[1769451655314,0.65673576,87986.0,87976.0,0.03]
[1769451655514,0.0113626,88008.0,87976.0,0.03]
[1769451655515,0.65673576,87992.0,87976.0,0.03]
[1769451655715,0.65673576,87992.0,87976.0,0.09819996]
[1769451655912,0.65673576,87992.0,87977.0,0.0113666]
[1769451656126,0.68673576,87991.0,87976.0,0.01136673]
[1769451656383,0.68673576,87991.0,87977.0,0.0113666]
[1769451656557,0.68673576,87991.0,87976.0,0.06820036]
[1769451656760,0.68673576,87991.0,87977.0,0.0113666]
[1769451656967,0.68673576,87991.0,87978.0,0.01136647]
[1769451657172,0.68673576,87991.0,87979.0,0.01136634]
[1769451658361,0.68673576,87991.0,87978.0,0.01136647]
[1769451658558,0.68673576,87991.0,87979.0,0.01136634]
[1769451658891,0.68673576,87991.0,87978.0,0.06819872]
[1769451659041,0.68673576,87991.0,87978.0,0.06934196]
[1769451659242,0.68673576,87991.0,87978.0,0.01250971]
[1769451659690,0.68673576,87991.0,87979.0,0.01136634]
[1769451659905,0.68673576,87991.0,87978.0,0.00114324]
[1769451660131,0.03,87989.0,87970.0,0.17472]
[1769451660273,0.17472,87997.0,87970.0,0.17472]
[1769451660274,0.03,87983.0,87970.0,0.17472]
[1769451660478,0.03,87981.0,87970.0,0.17472]
[1769451660685,0.0031545,87996.0,87965.0,0.17472]
[1769451660686,0.68673576,87979.0,87965.0,0.17472]
[1769451661004,0.03,87975.0,87965.0,0.17472]
[1769451661163,0.68673576,87975.0,87965.0,0.17472]
[1769451663387,0.7105485,87975.0,87965.0,0.17472]
[1769451663785,0.68673576,87975.0,87965.0,0.17472]
[1769451664425,0.17472,87986.0,87965.0,0.17472]
[1769451664426,0.68673576,87971.0,87965.0,0.17472]
[1769451664637,0.68673576,87971.0,87958.0,0.01136906]
[1769451665045,0.68673576,87971.0,87959.0,0.01136893]
[1769451665291,0.68673576,87971.0,87960.0,0.0113688]
[1769451665467,0.68673576,87971.0,87959.0,0.0682132]
[1769451665884,0.68673576,87971.0,87959.0,0.01136893]
[1769451666292,0.68673576,87971.0,87958.0,0.01136906]
[1769451666612,0.68673576,87971.0,87960.0,0.0113688]
[1769451666822,0.68673576,87971.0,87959.0,0.01136893]
[1769451666984,0.68673576,87971.0,87960.0,0.0113688]
[1769451667174,0.68673576,87971.0,87959.0,0.01136893]
[1769451667766,0.68673576,87971.0,87956.0,0.04552]
[1769451667767,0.03,87972.0,87962.0,0.01136854]
[1769451668171,0.05381274,87968.0,87956.0,0.04552]
[1769451668372,0.03,87964.0,87956.0,0.04552]
[1769451669044,0.68673576,87964.0,87956.0,0.04552]
[1769451669231,0.23154726,87986.0,87953.0,0.0002163]
[1769451669232,0.03,87960.0,87953.0,0.0002163]
[1769451669436,0.03,87956.0,87953.0,0.0002163]
[1769451669668,0.68673576,87956.0,87953.0,0.0002163]
[1769451670002,0.68673576,87956.0,87943.0,0.011371]
[1769451670003,0.7105485,87956.0,87943.0,0.011371]
[1769451670224,0.7105485,87956.0,87948.0,0.01137035]
[1769451670421,0.6705485,87956.0,87948.0,0.01137035]
[1769451670587,0.64673576,87956.0,87946.0,0.01137061]
[1769451670992,0.64673576,87956.0,87948.0,0.01137035]
[1769451671483,0.64673576,87956.0,87949.0,0.01137022]
[1769451671693,0.64673576,87956.0,87950.0,0.01137009]
[1769451672106,0.64673576,87956.0,87948.0,0.0682221]
[1769451672107,0.64673576,87956.0,87948.0,0.01137035]
[1769451672238,0.03,87960.0,87949.0,0.01137022]
[1769451672442,0.68673576,87960.0,87949.0,0.06822116]
[1769451672662,0.68673576,87960.0,87949.0,0.02972147]
[1769451673099,0.68673576,87960.0,87949.0,0.01835125]
[1769451673510,0.68673576,87960.0,87948.0,0.01137035]
[1769451673670,0.68673576,87960.0,87949.0,0.06822122]
[1769451673870,0.68673576,87960.0,87950.0,0.01137009]
[1769451674073,0.68673576,87984.0,87962.0,0.01136854]
[1769451674273,0.03,87982.0,87967.0,0.03569621]
[1769451674565,0.03,87980.0,87967.0,0.03569621]
[1769451674743,0.03,87976.0,87964.0,0.01136828]
[1769451674891,0.03,87976.0,87964.0,0.0682097]
[1769451675091,0.03,87976.0,87964.0,0.01136828]
[1769451675404,0.03,87976.0,87963.0,0.01136841]
[1769451675779,0.03,87976.0,87964.0,0.01136828]
[1769451676751,0.03,87963.0,87947.0,0.01137048]
[1769451676955,0.03,87963.0,87946.0,0.17472]
[1769451676956,0.68673576,87963.0,87949.0,0.06822103]
[1769451677158,0.68673576,87963.0,87950.0,0.01137009]
[1769451677333,0.68673576,87963.0,87949.0,0.06822103]
[1769451677534,0.68673576,87963.0,87945.0,0.02432832]
[1769451677774,0.68673576,87963.0,87946.0,0.02432832]
[1769451678146,0.03,87964.0,87955.0,0.01136945]
[1769451678487,0.03,87964.0,87955.0,0.06821658]
[1769451678790,0.03,87964.0,87954.0,0.01136957]
[1769451679376,0.03,87964.0,87953.0,0.06821793]
[1769451679626,0.03,87964.0,87955.0,0.001]
[1769451679829,0.68496293,87962.0,87955.0,0.001]
[1769451679978,0.68496293,87962.0,87949.0,0.03529924]
[1769451680182,0.68496293,87962.0,87949.0,0.02392902]
[1769451680412,0.47993891,87962.0,87949.0,0.03529924]
[1769451680577,0.47993891,87962.0,87949.0,0.02392902]
[1769451682273,0.47993891,87962.0,87949.0,0.0807799]
[1769451682492,0.47993891,87962.0,87950.0,0.01137009]
[1769451682951,0.47993891,87962.0,87949.0,0.03529924]
[1769451683361,0.47993891,87962.0,87950.0,0.01137009]
[1769451683535,0.47993891,87962.0,87952.0,0.01136983]
[1769451683742,0.47993891,87962.0,87951.0,0.01136996]
[1769451684139,0.03,87974.0,87964.0,0.01136828]
[1769451684444,0.03,87974.0,87967.0,0.02392902]
[1769451684850,0.4750962,87980.0,87967.0,0.02392902]
[1769451685254,0.03,87979.0,87967.0,0.02392902]
[1769451686055,0.03,87979.0,87967.0,0.03529691]
[1769451686479,0.001,87974.0,87971.0,0.01136738]
[1769451686688,0.001,87974.0,87970.0,0.03529653]
[1769451687357,0.001,87974.0,87971.0,0.01136738]
[1769451687695,0.17472,87987.0,87970.0,0.06820504]
[1769451687696,0.65496293,87997.0,87980.0,0.03529523]
[1769451687844,0.65496293,87997.0,87981.0,0.02392902]
[1769451688065,0.65496293,87997.0,87981.0,0.08075923]
[1769451688302,0.65496293,87997.0,87984.0,0.0113657]
[1769451688503,0.65496293,87997.0,87986.0,0.01136544]
[1769451688504,0.03,87996.0,87986.0,0.01136544]
[1769451688823,0.03,87996.0,87985.0,0.01136557]
[1769451688963,0.03,87996.0,87984.0,0.0113657]
[1769451689163,0.68496293,87996.0,87985.0,0.01136557]
[1769451689601,0.68496293,87996.0,87980.0,0.01136621]
[1769451689800,0.68496293,87996.0,87984.0,0.05682811]
[1769451690188,0.68496293,87996.0,87985.0,0.01136557]
[1769451690397,0.68496293,87996.0,87986.0,0.06819219]
[1769451691066,0.19794846,88001.0,87986.0,0.06819219]
[1769451691067,0.03,87995.0,87988.0,0.05682569]
[1769451691181,0.03,87995.0,87990.0,0.63411206]
[1769451691386,0.0031545,88009.0,87993.0,0.01136454]
[1769451691623,0.82968293,88010.0,87989.0,0.65582566]
[1769451691624,0.82968293,88010.0,87994.0,0.01136441]
[1769451691823,0.0003522,88027.0,88004.0,0.63411206]
[1769451692023,0.0331545,88026.0,88010.0,0.02392902]
[1769451692405,0.0331545,88026.0,88010.0,0.03529136]
[1769451692602,0.68811743,88026.0,88010.0,0.02392902]
[1769451692789,0.68496293,88026.0,88010.0,0.0217778]
[1769451693193,0.0031545,88025.0,88010.0,0.0217778]
[1769451693420,0.03,88023.0,88010.0,0.0217778]
[1769451694050,0.68496293,88023.0,88010.0,0.0217778]
[1769451696442,0.03,88022.0,88011.0,0.02392902]
[1769451697070,0.03,88022.0,88011.0,0.03529123]
[1769451697481,0.03,88021.0,88012.0,0.01136208]
[1769451697721,0.03,88021.0,88011.0,0.02392902]
[1769451698133,0.03,88021.0,88013.0,0.01136195]
[1769451698344,0.03,88021.0,88012.0,0.01136208]
[1769451698555,0.02358066,88027.0,88011.0,0.03529123]
[1769451698556,0.03,88020.0,88011.0,0.02392902]
[1769451699546,0.03,88019.0,88011.0,0.02392902]
[1769451699972,0.03,88019.0,88007.0,0.01136273]
[1769451700380,0.03,88019.0,88006.0,0.09210576]
[1769451700381,0.03,88019.0,88006.0,0.02392902]
[1769451700579,0.02358066,88027.0,88002.0,0.63411206]
[1769451700580,0.03,88018.0,88002.0,0.01136337]
[1769451700783,0.03,88016.0,88004.0,0.03529213]
[1769451700985,0.03,88016.0,88007.0,0.01136273]
[1769451701507,0.03,88016.0,88008.0,0.05681301]
[1769451701714,0.03,88024.0,88010.0,0.01136234]
[1769451701916,0.03,88024.0,88010.0,0.02392902]
[1769451702488,0.03,88024.0,88011.0,0.01136221]
[1769451702704,0.03,88023.0,88010.0,0.02392902]
[1769451703771,0.03,88022.0,88010.0,0.02392902]
[1769451704377,0.68496293,88022.0,88004.0,0.65804108]
[1769451704939,0.0031545,88021.0,87991.0,0.01136479]
[1769451705236,0.65496293,88016.0,87998.0,0.01136389]